bitfinex-derivatives/quotes_SOLF0:USTF0_20250626
["timestamp","ask_amount","ask_price","bid_price","bid_amount"]
[1750935816849,5.34094937,143.72,143.71,6.9554]
[1750935817255,5.34115117,143.72,143.71,6.9554]
[1750935817453,36.32,143.73,143.71,6.9554]
[1750935819760,43.2746,143.73,143.71,6.9554]
[1750935820060,1.2110245,143.78,143.69,2.4628]
[1750935820255,1.2110245,143.78,143.7,3.48764351]
[1750935820256,6.9538,143.75,143.7,3.48764351]
[1750935820561,6.9538,143.75,143.7,9.97069643]
[1750935820762,6.9538,143.75,143.73,6.9543]
[1750935824560,39.64764351,143.76,143.7,8.82615292]
[1750935824768,3.48764351,143.74,143.7,2.3431]
[1750935824952,3.48764351,143.74,143.69,8.94585292]
[1750935825153,6.9555,143.71,143.69,9.419]
[1750935826361,2.23050664,143.7,143.67,6.48305292]
[1750935826561,2.23050664,143.68,143.66,2.3396]
[1750935827663,2.23050664,143.68,143.67,6.9574]
[1750935828467,6.9567,143.69,143.67,6.9574]
[1750935829364,6.9567,143.69,143.66,2.3396]
[1750935830065,6.9567,143.69,143.67,6.9572]
[1750935830667,10.44268703,143.7,143.67,6.9572]
[1750935830961,5.33518077,143.69,143.67,6.9574]
[1750935831165,5.33518077,143.69,143.66,2.3396]
[1750935831166,10.44268703,143.7,143.66,2.3396]
[1750935831367,5.33583298,143.69,143.66,2.3396]
[1750935831570,10.44268703,143.7,143.66,2.3396]
[1750935831867,5.33583298,143.69,143.68,6.9569]
[1750935837767,5.29808582,143.69,143.68,6.9569]
[1750935839165,5.29808582,143.69,143.67,6.9572]
[1750935839369,6.9561,143.7,143.67,6.9572]
[1750935839574,5.29998701,143.69,143.67,6.9572]
[1750935839768,11.47208205,143.7,143.67,6.9572]
[1750935839969,5.29999016,143.69,143.68,6.9569]
[1750935840567,5.29999016,143.69,143.67,6.9572]
[1750935840767,6.9561,143.7,143.67,6.9572]
[1750935840966,5.28299994,143.69,143.67,6.9572]
[1750935841174,6.9561,143.7,143.67,6.9572]
[1750935841368,12.24037461,143.69,143.67,6.9572]
[1750935841570,6.9565,143.69,143.67,6.9572]
[1750935842473,11.47392891,143.7,143.67,6.9572]
[1750935842675,5.28400636,143.69,143.68,6.9569]
[1750935846779,12.24040636,143.69,143.67,6.9571]
[1750935847075,6.9564,143.69,143.67,6.9571]
[1750935849766,6.9564,143.69,143.66,9.2973]
[1750935849975,6.9564,143.69,143.65,6.48305292]
[1750935849976,3.48648703,143.69,143.65,6.48305292]
[1750935850178,3.48648703,143.67,143.64,6.48305292]
[1750935850476,2.23228549,143.67,143.63,8.71533841]
[1750935850679,2.23228549,143.67,143.64,6.48305292]
[1750935850878,9.18988549,143.67,143.65,6.9581]
[1750935851079,6.9576,143.67,143.65,6.9581]
[1750935851675,6.9576,143.67,143.64,8.71533841]
[1750935851873,9.18988549,143.67,143.64,6.48305292]
[1750935852375,6.9576,143.67,143.64,6.48305292]
[1750935852881,6.9576,143.67,143.65,6.9581]
[1750935855382,42.9772,143.68,143.65,6.9581]
[1750935855584,5.26892176,143.67,143.64,6.48305292]
[1750935855786,36.02,143.68,143.64,6.48305292]
[1750935855977,5.26891229,143.67,143.64,6.48305292]
[1750935856178,36.02,143.68,143.64,6.48305292]
[1750935858390,11.45912393,143.7,143.64,6.48305292]
[1750935858589,5.26807307,143.69,143.64,6.48305292]
[1750935858888,5.26807307,143.68,143.67,6.957]
[1750935865794,12.22497307,143.68,143.66,6.9577]
[1750935865993,39.50701525,143.71,143.65,6.48305292]
[1750935866290,9.79390728,143.7,143.65,6.48305292]
[1750935866492,16.75080728,143.69,143.66,6.9576]
[1750935866686,5.28228473,143.68,143.66,6.9576]
[1750935866886,6.9569,143.68,143.66,6.9576]
[1750935867891,5.29629566,143.67,143.66,6.9576]
[1750935869291,5.29629566,143.67,143.66,13.44065292]
[1750935882707,5.30119486,143.67,143.66,13.44065292]
[1750935885811,5.30168626,143.67,143.66,13.44065292]
[1750935887812,7.53306579,143.67,143.66,6.48305292]
[1750935888003,47.93866076,143.67,143.65,6.48305292]
[1750935888204,12.05866076,143.66,143.65,6.48305292]
[1750935889414,19.01656076,143.66,143.65,6.48305292]
[1750935889609,19.01656076,143.66,143.64,6.48305292]
[1750935889813,7.53306579,143.65,143.64,6.48305292]
[1750935890008,7.53306579,143.65,143.64,13.44195292]
[1750935890913,5.30168626,143.65,143.64,13.44195292]
[1750935891103,7.53306579,143.65,143.64,13.44195292]
[1750935898313,5.30168626,143.65,143.64,13.44195292]
[1750935898521,7.53306579,143.65,143.64,13.44195292]
[1750935901724,5.30168626,143.65,143.64,13.44195292]
[1750935902024,5.30168626,143.65,143.64,6.9589]
[1750935903321,38.11137953,143.67,143.66,6.9579]
[1750935903624,47.92206591,143.67,143.66,6.9579]
[1750935903931,43.39842908,143.67,143.66,6.9579]
[1750935904127,43.39842908,143.67,143.65,13.46862535]
[1750935904322,7.51842908,143.66,143.65,13.46862535]
[1750935905424,14.47632908,143.66,143.65,6.51052535]
[1750935905924,7.51842908,143.66,143.65,6.51052535]
[1750935906433,7.51842908,143.66,143.65,13.46892535]
[1750935906726,7.51842908,143.66,143.65,6.51052535]
[1750935907518,14.47632908,143.66,143.65,6.51052535]
[1750935907913,12.05341704,143.66,143.62,8.64407056]
[1750935908118,2.23137953,143.63,143.61,8.64407056]
[1750935908417,2.23137953,143.62,143.61,15.60417056]
[1750935908722,2.23137953,143.62,143.6,8.64407056]
[1750935909025,9.19117953,143.62,143.6,15.60467056]
[1750935909416,2.23137953,143.62,143.59,8.64407056]
[1750935909823,2.23137953,143.62,143.6,6.9608]
[1750935910622,2.23137953,143.61,143.6,6.9608]
[1750935910828,2.23137953,143.61,143.59,15.60517056]
[1750935911529,2.23137953,143.61,143.59,6.9611]
[1750935913232,6.9601,143.62,143.6,6.9608]
[1750935913420,2.23137953,143.61,143.6,6.9608]
[1750935915135,2.23137953,143.61,143.58,10.91427056]
[1750935915632,2.23137953,143.61,143.59,6.961]
[1750935915931,9.19167953,143.61,143.59,6.961]
[1750935916137,2.23137953,143.6,143.58,9.2317]
[1750935916336,2.23137953,143.6,143.58,2.2702]
[1750935916741,2.23137953,143.6,143.58,9.2317]
[1750935917338,2.23137953,143.59,143.56,10.98857056]
[1750935917540,2.23137953,143.57,143.55,8.64407056]
[1750935917733,2.23137953,143.56,143.54,15.60777056]
[1750935917940,2.23137953,143.55,143.52,8.64407056]
[1750935918136,2.23137953,143.54,143.51,15.64907056]
[1750935918438,2.23137953,143.54,143.53,6.9639]
[1750935918640,6.963,143.56,143.51,15.64907056]
[1750935918641,2.23137953,143.55,143.51,17.88045009]
[1750935919035,2.23137953,143.55,143.54,6.9634]
[1750935920536,6.9625,143.57,143.54,6.9634]
[1750935920732,2.23137953,143.55,143.54,6.9634]
[1750935923842,2.23137953,143.55,143.53,6.9639]
[1750935924043,2.23137953,143.54,143.53,6.9639]
[1750935925044,2.23137953,143.55,143.54,6.9634]
[1750935925546,2.23137953,143.56,143.52,2.23137953]
[1750935925745,2.23137953,143.57,143.53,2.23137953]
[1750935926050,2.23137953,143.54,143.51,4.7372]
[1750935926249,2.23137953,143.52,143.51,11.7024]
[1750935926445,9.19627953,143.52,143.47,37.9149]
[1750935926653,2.23137953,143.5,143.47,37.9149]
[1750935926954,2.23137953,143.49,143.47,37.9149]
[1750935927139,2.23137953,143.5,143.47,37.9149]
[1750935927646,35.64,143.54,143.46,4.7477]
[1750935927647,2.23137953,143.48,143.46,4.7477]
[1750935927950,2.23137953,143.47,143.46,4.7477]
[1750935928147,2.23137953,143.47,143.46,11.7153]
[1750935928553,2.23137953,143.47,143.46,4.7477]
[1750935928847,2.23137953,143.47,143.42,4.65417953]
[1750935929039,2.23137953,143.46,143.42,9.37557953]
[1750935929947,2.23137953,143.47,143.43,2.23137953]
[1750935930251,3.49661066,143.48,143.46,6.9673]
[1750935930442,10.46321066,143.48,143.46,6.9673]
[1750935932348,10.46321066,143.48,143.45,6.9679]
[1750935932548,3.49661066,143.46,143.42,7.1442]
[1750935933556,3.49661066,143.46,143.45,6.9681]
[1750935935858,3.49661066,143.49,143.42,7.1442]
[1750935936455,3.49661066,143.49,143.47,6.9668]
[1750935936956,10.46311066,143.49,143.46,6.9674]
[1750935937254,3.49661066,143.47,143.46,6.9674]
[1750935937552,3.49661066,143.47,143.42,7.1442]
[1750935937759,3.49661066,143.45,143.42,7.1442]
[1750935938257,3.49661066,143.45,143.43,6.9688]
[1750935939647,10.46481066,143.45,143.42,14.1135]
[1750935939855,10.46481066,143.45,143.42,11.6907]
[1750935940059,3.49661066,143.45,143.42,4.7214]
[1750935940252,3.49661066,143.45,143.44,6.9686]
[1750935940862,3.49661066,143.45,143.43,6.9688]
[1750935941164,3.49661066,143.45,143.42,4.7214]
[1750935942153,35.66,143.46,143.42,4.7214]
[1750935942358,35.66,143.46,143.45,6.9681]
[1750935945369,35.66,143.46,143.42,4.7214]
[1750935946169,39.15661066,143.46,143.42,4.7214]
[1750935947566,46.12451066,143.46,143.44,6.9684]
[1750935950467,6.9681,143.45,143.42,4.7214]
[1750935950768,3.49661066,143.44,143.42,4.7214]
[1750935951874,39.15661066,143.46,143.42,4.7214]
[1750935952072,3.49661066,143.46,143.42,4.7214]
[1750935952273,3.49661066,143.46,143.45,6.9681]
[1750935954374,3.49661066,143.46,143.44,6.9683]
[1750935954775,3.49661066,143.47,143.45,6.968]
[1750935954975,39.17661066,143.48,143.42,4.7214]
[1750935955173,39.17661066,143.48,143.43,2.3956]
[1750935955477,6.9649,143.52,143.46,3.49661066]
[1750935955666,6.9649,143.52,143.47,4.7809]
[1750935955866,3.49661066,143.52,143.47,4.7809]
[1750935956173,10.46151066,143.52,143.47,4.7809]
[1750935956672,35.68,143.54,143.48,3.49661066]
[1750935956870,35.56,143.57,143.48,3.49661066]
[1750935957173,15.5147268,143.56,143.52,6.9643]
[1750935957372,5.05491614,143.55,143.52,6.9643]
[1750935957564,5.05491614,143.54,143.52,6.9643]
[1750935957763,5.05491614,143.55,143.53,6.9642]
[1750935957969,5.05491614,143.54,143.53,6.9642]
[1750935958165,5.05491614,143.55,143.53,6.9642]
[1750935958382,5.05491614,143.54,143.53,6.9642]
[1750935958677,5.05491614,143.55,143.53,6.9642]
[1750935958865,5.05491614,143.54,143.53,6.9642]
[1750935959069,5.05491614,143.55,143.53,6.9642]
[1750935959274,5.05491614,143.54,143.53,6.9642]
[1750935959476,5.05491614,143.55,143.53,6.9642]
[1750935959680,5.05491614,143.54,143.53,6.9642]
[1750935959877,5.05491614,143.55,143.53,6.9642]
[1750935960076,5.05491614,143.54,143.53,6.9642]
[1750935960277,5.06086978,143.54,143.5,39.05661066]
[1750935960582,1.32246978,143.55,143.5,39.05661066]
[1750935960775,6.9623,143.57,143.54,6.9634]
[1750935961778,6.9623,143.57,143.55,6.9632]
[1750935962482,6.9623,143.57,143.54,6.9635]
[1750935962888,43.35102111,143.58,143.53,6.964]
[1750935962889,6.9628,143.56,143.53,6.964]
[1750935963080,3.49661066,143.56,143.5,35.56]
[1750935963582,6.9636,143.55,143.52,6.9644]
[1750935964381,6.9636,143.55,143.53,6.9642]
[1750935964685,6.9636,143.55,143.5,35.56]
[1750935964886,3.49661066,143.54,143.51,6.9649]
[1750935965589,6.9642,143.53,143.51,6.9649]
[1750935965993,6.965,143.52,143.49,9.3615]
[1750935966286,3.49661066,143.52,143.47,48.98497056]
[1750935966673,3.49661066,143.52,143.47,40.3409]
[1750935967281,35.56,143.53,143.47,40.3409]
[1750935967882,35.56,143.53,143.48,6.47562929]
[1750935968481,35.56,143.53,143.51,6.9649]
[1750935970389,35.56,143.53,143.52,6.9647]
[1750935970786,3.49661066,143.54,143.52,6.9647]
[1750935972078,10.46011066,143.55,143.49,6.47562929]
[1750935972586,10.46011066,143.55,143.53,6.9641]
[1750935979093,6.9637,143.54,143.52,6.9644]
[1750935980795,3.49406007,143.54,143.49,8.76112929]
[1750935980989,3.49406007,143.52,143.49,8.76112929]
[1750935981194,3.49406007,143.52,143.48,6.47562929]
[1750935981398,3.49406007,143.5,143.48,6.9664]
[1750935982594,10.45976007,143.5,143.48,6.9664]
[1750935982795,3.49406007,143.5,143.47,8.83382929]
[1750935982997,3.49406007,143.48,143.44,44.43152929]
[1750935983193,10.46096007,143.48,143.44,44.43152929]
[1750935983592,10.46096007,143.48,143.45,6.9676]
[1750935983793,10.46096007,143.48,143.44,44.43152929]
[1750935984093,3.49406007,143.48,143.44,44.43152929]
[1750935984492,6.9663,143.49,143.46,6.9672]
[1750935984693,10.45996007,143.5,143.45,6.47562929]
[1750935985000,3.49406007,143.5,143.46,6.9672]
[1750935985202,6.9663,143.49,143.46,6.9672]
[1750935985401,3.49406007,143.5,143.44,44.43152929]
[1750935985905,10.46016007,143.5,143.47,6.9669]
[1750935986705,10.46016007,143.5,143.48,6.9666]
[1750935986907,39.05406007,143.52,143.45,6.47562929]
[1750935987114,39.05406007,143.52,143.46,6.47562929]
[1750935987311,46.01896007,143.52,143.49,6.9658]
[1750935987801,46.01896007,143.52,143.5,6.9655]
[1750935988807,39.05406007,143.52,143.51,6.9652]
[1750935989006,35.56,143.52,143.51,6.9652]
[1750935990009,35.56,143.52,143.5,6.9654]
[1750935990603,42.5247,143.52,143.5,6.9654]
[1750935991504,35.56,143.52,143.5,6.9654]
[1750935992205,42.5247,143.52,143.5,6.9654]
[1750935992410,35.56,143.52,143.51,6.9652]
[1750935992808,6.9644,143.53,143.51,6.9652]
[1750935993204,6.9644,143.53,143.5,6.9654]
[1750935993608,6.9644,143.53,143.48,6.47562929]
[1750935994210,6.9644,143.53,143.5,6.9652]
[1750935995311,6.9644,143.53,143.48,6.47562929]
[1750935995517,6.9648,143.52,143.48,6.47562929]
[1750935995818,6.9648,143.52,143.49,6.966]
[1750935996215,6.9648,143.52,143.48,6.47562929]
[1750935997520,6.9648,143.52,143.5,6.9656]
[1750936000427,6.9644,143.53,143.51,6.9652]
[1750936001820,6.9647,143.52,143.51,6.9652]
[1750936002522,6.9647,143.52,143.5,6.9653]
[1750936005420,3.49641133,143.51,143.48,6.47562929]
[1750936005617,35.5,143.55,143.48,6.47562929]
[1750936005618,3.49641133,143.53,143.48,6.47562929]
[1750936005821,12.05971197,143.52,143.49,13.44152929]
[1750936006031,6.965,143.52,143.49,6.9659]
[1750936006731,10.46091133,143.53,143.5,6.9656]
[1750936006929,3.49641133,143.53,143.5,6.47562929]
[1750936007319,10.46061133,143.53,143.5,6.47562929]
[1750936007529,3.49641133,143.53,143.49,6.47562929]
[1750936007919,6.9649,143.52,143.5,6.9654]
[1750936008229,6.9649,143.52,143.49,6.47562929]
[1750936008623,6.9652,143.51,143.49,6.47562929]
[1750936009326,6.9649,143.52,143.49,6.47562929]
[1750936009824,6.9649,143.52,143.49,13.44152929]
[1750936010025,10.46081133,143.53,143.49,6.47562929]
[1750936010225,10.46081133,143.53,143.5,6.47562929]
[1750936010532,10.46081133,143.53,143.5,13.44112929]
[1750936011728,10.46081133,143.53,143.51,6.9651]
[1750936012124,6.9639,143.54,143.51,6.9651]
[1750936012321,5.09005957,143.53,143.51,6.9651]
[1750936012527,6.9639,143.54,143.51,6.9651]
[1750936012723,5.09005957,143.53,143.51,6.9651]
[1750936012924,6.9639,143.54,143.51,6.9651]
[1750936013125,5.09005957,143.53,143.51,6.9651]
[1750936013324,6.9639,143.54,143.51,6.9651]
[1750936013532,5.09016186,143.53,143.51,6.9651]
[1750936013833,6.9639,143.54,143.51,6.9651]
[1750936014027,5.09016186,143.53,143.52,6.9647]
[1750936014530,14.84432178,143.55,143.52,6.9647]
[1750936014831,5.08986863,143.54,143.52,6.9647]
[1750936015030,10.45981133,143.55,143.52,6.9647]
[1750936015234,10.45981133,143.55,143.53,6.964]
[1750936015235,5.0898664,143.54,143.53,6.964]
[1750936015736,42.4629,143.56,143.54,6.9636]
[1750936015929,5.08924603,143.55,143.54,6.9636]
[1750936016325,45.91891133,143.57,143.55,6.9632]
[1750936016526,5.08897691,143.56,143.55,6.9632]
[1750936017825,35.46,143.57,143.56,6.9627]
[1750936018030,40.54817099,143.57,143.56,6.9627]
[1750936018428,35.46,143.57,143.56,6.9627]
[1750936018831,40.5474518,143.57,143.56,6.9627]
[1750936020029,35.46,143.57,143.56,6.9627]
[1750936020229,4.3851106,143.59,143.54,6.47562929]
[1750936020431,35.46,143.6,143.55,6.47562929]
[1750936020629,35.46,143.6,143.56,2.4194]
[1750936020836,42.4208,143.6,143.57,6.9621]
[1750936021941,35.46,143.6,143.56,8.89502929]
[1750936022432,608.9401,143.62,143.59,6.9613]
[1750936022839,6.9601,143.62,143.59,6.9613]
[1750936024529,6.9604,143.61,143.58,6.9615]
[1750936024940,6.9604,143.61,143.57,6.47562929]
[1750936025135,6.96,143.62,143.59,6.961]
[1750936025533,6.9605,143.61,143.59,6.961]
[1750936025738,3.49174799,143.62,143.59,6.961]
[1750936026233,3.49174799,143.62,143.58,6.9616]
[1750936027244,6.9606,143.61,143.58,6.9616]
[1750936028645,3.49174799,143.6,143.57,6.9622]
[1750936028846,3.49174799,143.6,143.56,2.4194]
[1750936029443,10.45284799,143.6,143.57,6.962]
[1750936029744,3.49174799,143.6,143.56,2.4194]
[1750936029942,6.9605,143.61,143.58,6.9615]
[1750936030647,10.45184799,143.62,143.59,6.961]
[1750936031153,10.45184799,143.62,143.56,47.82677728]
[1750936032054,45.91124799,143.63,143.56,47.82677728]
[1750936032449,6.9598,143.62,143.56,47.82677728]
[1750936032852,3.49174799,143.63,143.56,47.82677728]
[1750936033052,42.3991,143.64,143.57,6.47562929]
[1750936033364,42.3991,143.64,143.58,3.49174799]
[1750936033551,35.44,143.64,143.62,6.9598]
[1750936034057,35.44,143.64,143.59,2.3735]
[1750936034658,35.44,143.64,143.61,6.9601]
[1750936035554,6.9595,143.63,143.61,6.9601]
[1750936035951,6.9595,143.63,143.6,6.9606]
[1750936036758,6.9595,143.63,143.61,6.9602]
[1750936037260,6.9595,143.63,143.6,6.9604]
[1750936038352,6.9595,143.63,143.61,6.9602]
[1750936040066,6.9598,143.62,143.6,6.9606]
[1750936040258,38.93174799,143.65,143.6,6.9606]
[1750936040453,6.9595,143.63,143.6,6.9606]
[1750936041364,38.93174799,143.65,143.6,6.9606]
[1750936041774,3.49174799,143.65,143.6,6.9606]
[1750936042075,6.9598,143.63,143.6,6.9606]
[1750936043275,6.9598,143.63,143.58,2.2969]
[1750936043968,6.9598,143.63,143.6,6.9604]
[1750936044771,6.9598,143.63,143.61,6.9602]
[1750936052188,3.49174799,143.63,143.56,46.70852929]
[1750936052390,3.49174799,143.63,143.56,40.2329]
[1750936052987,6.9605,143.61,143.59,6.9611]
[1750936054193,6.9608,143.6,143.58,6.9615]
[1750936054388,3.49174799,143.63,143.56,40.2329]
[1750936055090,6.9605,143.61,143.59,6.9611]
[1750936055492,3.49174799,143.63,143.56,46.70852929]
[1750936055692,6.9599,143.62,143.6,6.9605]
[1750936055891,3.49174799,143.63,143.56,50.20027728]
[1750936056290,3.49174799,143.63,143.57,6.47562929]
[1750936056488,10.45124799,143.63,143.57,6.47562929]
[1750936056689,10.45124799,143.63,143.58,6.47562929]
[1750936056885,10.45124799,143.63,143.57,6.47562929]
[1750936057595,10.45124799,143.63,143.6,6.9604]
[1750936057992,6.9599,143.62,143.6,6.9604]
[1750936058995,6.9603,143.61,143.59,6.961]
[1750936059296,3.49174799,143.63,143.57,6.47562929]
[1750936059490,6.96,143.62,143.6,6.9605]
[1750936060399,6.9603,143.61,143.59,6.961]
[1750936063790,6.9601,143.62,143.59,6.961]
[1750936064294,5.16555263,143.61,143.59,6.961]
[1750936064598,6.9601,143.62,143.6,6.9608]
[1750936064798,5.1656916,143.61,143.6,6.9608]
[1750936065399,6.9601,143.62,143.6,6.9608]
[1750936066503,10.45114799,143.63,143.61,6.9603]
[1750936066693,5.16887898,143.62,143.59,6.47562929]
[1750936066893,3.49174799,143.63,143.59,6.47562929]
[1750936067103,12.12867675,143.62,143.6,6.9605]
[1750936067304,6.9598,143.62,143.6,13.43612929]
[1750936068702,6.9598,143.62,143.61,6.9603]
[1750936068892,12.12946186,143.62,143.61,6.9603]
[1750936069094,5.16966186,143.62,143.61,6.9603]
[1750936070801,42.3791,143.64,143.61,6.9603]
[1750936071006,5.17000282,143.63,143.61,6.9603]
[1750936071203,42.3791,143.64,143.61,13.43592929]
[1750936071400,5.17003367,143.63,143.61,13.43592929]
[1750936071699,42.3791,143.64,143.61,13.43592929]
[1750936071899,5.17033512,143.63,143.62,6.9598]
[1750936073603,12.12963512,143.63,143.61,13.43572929]
[1750936073803,35.42,143.64,143.61,6.47562929]
[1750936074003,5.1711043,143.63,143.61,6.47562929]
[1750936074205,6.9598,143.62,143.61,6.47562929]
[1750936074405,12.13177052,143.62,143.61,6.47562929]
[1750936075703,5.17197052,143.62,143.61,13.43592929]
[1750936076308,5.17197052,143.62,143.57,12.96610584]
[1750936076309,12.13177052,143.62,143.6,13.43612929]
[1750936076506,6.9598,143.62,143.6,13.43612929]
[1750936078307,9.19297431,143.62,143.6,13.43612929]
[1750936080314,7.41169505,143.61,143.6,6.47562929]
[1750936080608,7.41169505,143.61,143.59,6.47562929]
[1750936080808,7.41169505,143.6,143.59,6.47562929]
[1750936081608,14.37249505,143.6,143.59,6.47562929]
[1750936082013,7.41169505,143.6,143.58,6.47562929]
[1750936082214,6.9615,143.59,143.57,13.43782929]
[1750936082417,37.7683,143.64,143.57,6.47562929]
[1750936082618,3.49115719,143.61,143.58,6.47562929]
[1750936082817,12.13851495,143.6,143.58,13.43702929]
[1750936083015,6.961,143.6,143.58,13.43702929]
[1750936083716,5.17677938,143.59,143.58,13.43702929]
[1750936084422,6.961,143.6,143.58,13.43702929]
[1750936085420,37.7683,143.64,143.58,6.47562929]
[1750936085620,3.49115719,143.62,143.58,6.47562929]
[1750936085921,9.61329496,143.61,143.58,6.47562929]
[1750936086110,5.15798427,143.6,143.58,6.47562929]
[1750936086311,3.49115719,143.62,143.58,6.47562929]
[1750936086509,3.49115719,143.6,143.58,6.47562929]
[1750936087320,10.45215719,143.6,143.58,13.43722929]
[1750936088818,10.45215719,143.6,143.58,6.9616]
[1750936089117,10.45215719,143.6,143.58,13.43722929]
[1750936089314,10.45215719,143.6,143.58,6.9616]
[1750936090719,10.45215719,143.6,143.58,13.43722929]
[1750936090922,6.961,143.6,143.58,13.43722929]
[1750936091924,6.9605,143.61,143.59,6.9612]
[1750936092127,5.15628709,143.6,143.59,6.9612]
[1750936092422,5.15628709,143.6,143.59,13.43682929]
[1750936093319,3.49115719,143.64,143.59,6.47562929]
[1750936093625,4.43837773,143.63,143.6,6.47562929]
[1750936093815,4.43837773,143.62,143.6,6.47562929]
[1750936094010,11.39056301,143.63,143.61,6.96]
[1750936094211,3.49115719,143.64,143.61,6.96]
[1750936094420,4.4311677,143.63,143.61,13.43562929]
[1750936094618,10.45025719,143.64,143.61,13.43562929]
[1750936094819,3.49115719,143.64,143.61,6.96]
[1750936095020,6.9594,143.63,143.61,6.96]
[1750936099129,6.959,143.64,143.61,6.47562929]
[1750936100234,6.959,143.64,143.61,13.43542929]
[1750936100432,6.959,143.64,143.61,6.47562929]
[1750936100834,6.959,143.64,143.62,6.9597]
[1750936101630,6.959,143.64,143.61,13.43552929]
[1750936101828,6.9594,143.63,143.61,6.9599]
[1750936103033,6.9599,143.62,143.6,13.43612929]
[1750936104324,9.19296568,143.62,143.6,13.43612929]
[1750936108431,2.23306568,143.62,143.6,13.43612929]
[1750936109545,2.23306568,143.62,143.61,6.9603]
[1750936109840,9.19266568,143.63,143.61,6.9603]
[1750936110637,2.23306568,143.63,143.6,6.47562929]
[1750936110842,2.23306568,143.62,143.6,6.47562929]
[1750936111335,2.23306568,143.62,143.6,13.43592929]
[1750936111738,2.23306568,143.62,143.6,6.47562929]
[1750936112144,2.23306568,143.61,143.6,6.47562929]
[1750936112334,11.80995722,143.61,143.57,6.47562929]
[1750936112536,2.23306568,143.58,143.57,6.47562929]
[1750936112838,2.23306568,143.59,143.57,6.47562929]
[1750936114333,2.23306568,143.59,143.58,6.9613]
[1750936115635,2.23306568,143.59,143.58,13.43692929]
[1750936117646,7.34867324,143.62,143.58,2.23306568]
[1750936117845,2.23306568,143.63,143.6,6.50604115]
[1750936118047,2.23306568,143.64,143.6,8.73910683]
[1750936118252,2.23306568,143.64,143.61,6.50604115]
[1750936118546,2.23306568,143.64,143.62,6.50604115]
[1750936118749,2.23306568,143.64,143.62,13.46544115]
[1750936119238,2.23306568,143.64,143.62,6.9594]
[1750936119846,42.2986,143.65,143.63,6.9592]
[1750936120047,2.23306568,143.64,143.62,6.50604115]
[1750936120247,35.34,143.65,143.61,6.50604115]
[1750936120434,35.34,143.65,143.62,6.9596]
[1750936120640,42.2987,143.65,143.62,6.9596]
[1750936122149,42.2987,143.65,143.62,6.9597]
[1750936122748,35.34,143.65,143.63,6.959]
[1750936123644,42.2984,143.65,143.63,6.959]
[1750936127970,6.9589,143.64,143.61,6.50604115]
[1750936128156,3.48804746,143.64,143.61,6.50604115]
[1750936128855,10.44714746,143.64,143.61,13.46584115]
[1750936130059,10.44714746,143.64,143.61,6.9598]
[1750936130262,3.48804746,143.64,143.6,13.46654115]
[1750936130553,3.48804746,143.62,143.6,6.50604115]
[1750936130857,3.48804746,143.62,143.58,8.64407056]
[1750936130858,6.9612,143.6,143.58,6.50604115]
[1750936131053,10.44924746,143.6,143.58,6.50604115]
[1750936132254,10.44924746,143.6,143.58,13.46764115]
[1750936133156,3.48804746,143.6,143.58,13.46764115]
[1750936135360,10.44884746,143.6,143.58,13.46764115]
[1750936135552,3.48804746,143.6,143.58,13.46764115]
[1750936137049,3.48804746,143.6,143.58,6.50604115]
[1750936137451,6.9612,143.59,143.58,6.50604115]
[1750936139358,10.44894746,143.6,143.58,13.46774115]
[1750936142153,10.44894746,143.6,143.58,6.50604115]
[1750936143267,10.44894746,143.6,143.58,13.46764115]
[1750936144666,6.9612,143.59,143.58,6.50604115]
[1750936145167,6.962,143.58,143.56,6.50604115]
[1750936145374,3.48804746,143.58,143.56,6.50604115]
[1750936145872,10.45014746,143.58,143.56,6.50604115]
[1750936147772,10.45014746,143.58,143.56,13.46864115]
[1750936149369,10.45014746,143.58,143.56,6.50604115]
[1750936149968,6.9621,143.58,143.56,6.50604115]
[1750936150175,6.9621,143.58,143.56,13.46874115]
[1750936153671,10.44954746,143.59,143.57,6.962]
[1750936153879,38.82804746,143.61,143.56,6.50604115]
[1750936154066,12.04836831,143.6,143.57,6.9621]
[1750936154376,2.23427129,143.58,143.57,6.9621]
[1750936157576,9.19597129,143.58,143.56,13.46854115]
[1750936161286,6.9622,143.57,143.55,13.46904115]
[1750936161484,9.19647129,143.57,143.55,13.46904115]
[1750936162285,2.23427129,143.57,143.55,13.46904115]